fUSD/lending_fUSD_20240901
["ID","MTS","AMOUNT","RATE_DAILY","PERIOD"]
[336796377,1725161439853,-313.83245145,0.00011,2]
[336796378,1725161439864,-1641.30252,0.00011,2]
[336796379,1725161439876,-1023.25,0.00011,2]
[336796380,1725161439892,-29574.57782437,0.00011,2]
[336796381,1725161439908,-400.72945936,0.00011,2]
[336796382,1725161439919,-2207.46631516,0.00011,2]
[336796383,1725161439930,-362.572002,0.00011,2]
[336796384,1725161440016,-1280346.43920246,0.00011,2]
[336796385,1725161440027,-326.52285458,0.00011365,2]
[336796386,1725161440036,-200.0,0.00011441,2]
[336796387,1725161440046,-250.0,0.00011445,2]
[336796388,1725161440056,-1500.0,0.00011445,2]
[336796389,1725161440067,-3635.34,0.00011448,2]
[336796390,1725161440077,-2318.88,0.0001145,2]
[336796391,1725161440086,-2591.13,0.00011466,2]
[336796392,1725161440095,-1105.82,0.00011468,2]
[336796393,1725161440105,-23900.0,0.00011559,2]
[336796394,1725161440114,-250.0,0.00011578,2]
[336796395,1725161440123,-648.07,0.00011595,2]
[336796396,1725161440133,-271.61,0.00011642,2]
[336796397,1725161440144,-250.0,0.00011644,2]
[336796398,1725161440154,-7481.53,0.00011644,2]
[336796399,1725161440163,-178.8,0.00011644,2]
[336796400,1725161440172,-160.0,0.00011664,2]
[336796401,1725161440182,-761.5029,0.00011668,2]
[336796402,1725161440192,-173.27,0.00011677,2]
[336796403,1725161440202,-10772.44,0.00011687,2]
[336796404,1725161440212,-155.85555883,0.00011688,2]
[336796405,1725161440223,-500.0,0.0001169,2]
[336796407,1725161440232,-215.15,0.00011924,2]
[336796409,1725161440243,-872.0,0.00011936,2]
[336796410,1725161440252,-152.0,0.00012044,2]
[336796411,1725161440263,-800.0,0.000122,4]
[336796412,1725161440273,-1600.0,0.000123,4]
[336796413,1725161440283,-194.32,0.00012346,2]
[336796414,1725161440295,-2400.0,0.000124,4]
[336796415,1725161440305,-3200.0,0.000125,4]
[336796416,1725161440316,-4100.0,0.000126,4]
[336796417,1725161440326,-2326.4415,0.000127,2]
[336796418,1725161440336,-1461.6585,0.000127,2]
[336796419,1725161440347,-260.4285,0.000127,2]
[336796420,1725161440356,-2486.9241,0.000127,2]
[336796421,1725161440366,-2500.0,0.000127,2]
[336796422,1725161440375,-800.0,0.000127,4]
[336796423,1725161440384,-24256.29414074,0.000127,2]
[336796424,1725161440393,-331.75531994,0.000127,2]
[336796425,1725161440402,-155.97369365,0.000127,2]
[336796426,1725161440411,-150.0,0.00012729,2]
[336796427,1725161440421,-150.0,0.00012732,2]
[336796428,1725161440433,-150.0,0.00012736,2]
[336796429,1725161440442,-150.0,0.00012737,2]
[336796430,1725161440451,-150.0,0.00012738,2]
[336796431,1725161440460,-150.0,0.0001274,2]
[336796432,1725161440469,-150.0,0.00012745,2]
[336796433,1725161440482,-150.0,0.00012745,2]
[336796434,1725161440491,-150.0,0.00012747,2]
[336796435,1725161440501,-150.0,0.00012748,2]
[336796436,1725161440513,-150.0,0.0001275,2]
[336796437,1725161440522,-150.0,0.00012752,2]
[336796438,1725161440533,-150.0,0.00012754,2]
[336796439,1725161440542,-150.0,0.00012755,2]
[336796440,1725161440554,-150.0,0.00012756,2]
[336796441,1725161440564,-150.0,0.0001276,2]
[336796442,1725161440574,-150.0,0.00012767,2]
[336796443,1725161440584,-150.0,0.00012769,2]
[336796444,1725161440593,-150.0,0.0001277,2]
[336796445,1725161440604,-150.0,0.00012774,2]
[336796446,1725161440613,-150.0,0.00012781,2]
[336796447,1725161440623,-150.0,0.00012781,2]
[336796448,1725161440634,-150.0,0.00012783,2]
[336796449,1725161440644,-150.0,0.00012786,2]
[336796450,1725161440653,-150.0,0.00012787,2]
[336796451,1725161440663,-150.0,0.00012793,2]
[336796452,1725161440672,-150.0,0.00012794,2]
[336796453,1725161440681,-150.0,0.00012794,2]
[336796454,1725161440692,-150.0,0.00012795,2]
[336796455,1725161440702,-39229.3798,0.000128,2]
[336796456,1725161440712,-5575.9014,0.000128,2]
[336796457,1725161440722,-100000.0,0.000128,2]
[336796458,1725161440731,-500.0,0.000128,2]
[336796459,1725161440740,-1000.0,0.000128,2]
[336796460,1725161440750,-150.0,0.000128,2]
[336796461,1725161440759,-800.0,0.000128,4]
[336796462,1725161440768,-331.75531993,0.000128,2]
[336796463,1725161440777,-150.0,0.00012802,2]
[336796464,1725161440786,-150.0,0.00012804,2]
[336796465,1725161440795,-150.0,0.00012806,2]
[336796466,1725161440805,-150.0,0.00012808,2]
[336796467,1725161440814,-150.0,0.00012812,2]
[336796468,1725161440823,-150.0,0.00012816,2]
[336796469,1725161440832,-150.0,0.00012819,2]
[336796470,1725161440842,-150.0,0.00012823,2]
[336796471,1725161440851,-150.0,0.00012829,2]
[336796472,1725161440860,-150.0,0.00012829,2]
[336796473,1725161440943,-150.0,0.0001283,2]
[336796474,1725161440952,-150.0,0.00012831,2]
[336796475,1725161440962,-150.0,0.00012834,2]
[336796476,1725161440970,-150.0,0.00012837,2]
[336796477,1725161440979,-150.0,0.00012839,2]
[336796478,1725161440988,-150.0,0.0001284,2]
[336796479,1725161440997,-150.0,0.0001284,2]
[336796480,1725161441006,-150.0,0.00012841,2]
[336796481,1725161441015,-150.0,0.00012842,2]
[336796482,1725161441024,-150.0,0.00012843,2]
[336796483,1725161441033,-150.0,0.00012846,2]
[336796484,1725161441042,-150.0,0.00012847,2]
[336796485,1725161441051,-150.0,0.0001285,2]
[336796486,1725161441061,-150.0,0.0001285,2]
[336796487,1725161441070,-150.0,0.00012852,2]
[336796488,1725161441078,-150.0,0.00012854,2]
[336796489,1725161441088,-150.0,0.00012858,2]
[336796490,1725161441097,-150.0,0.00012859,2]
[336796491,1725161441106,-150.0,0.00012859,2]
[336796492,1725161441115,-150.0,0.00012859,2]
[336796493,1725161441124,-150.0,0.00012864,2]
[336796494,1725161441133,-150.0,0.00012867,2]
[336796495,1725161441142,-2370.3281,0.0001287,2]
[336796496,1725161441151,-150.0,0.00012876,2]
[336796497,1725161441160,-150.0,0.00012882,2]
[336796498,1725161441169,-150.0,0.00012883,2]
[336796499,1725161441179,-150.0,0.00012883,2]
[336796500,1725161441188,-150.0,0.00012885,2]
[336796501,1725161441197,-150.0,0.00012892,2]
[336796502,1725161441206,-150.0,0.00012895,2]
[336796503,1725161441216,-150.0,0.00012898,2]
[336796504,1725161441225,-148327.2986,0.000129,2]
[336796505,1725161441234,-5891.11,0.000129,2]
[336796506,1725161441243,-800.0,0.000129,4]
[336796507,1725161441252,-7500.0,0.000129,2]
[336796508,1725161441261,-1004.0,0.000129,2]
[336796509,1725161441270,-331.75531993,0.000129,2]
[336796510,1725161441280,-150.0,0.00012901,2]
[336796511,1725161441289,-150.0,0.00012901,2]
[336796512,1725161441299,-150.0,0.00012903,2]
[336796513,1725161441308,-150.0,0.00012904,2]
[336796514,1725161441317,-150.0,0.00012906,2]
[336796515,1725161441326,-150.0,0.00012909,2]
[336796516,1725161441336,-150.0,0.00012909,2]
[336796517,1725161441345,-150.0,0.00012913,2]
[336796518,1725161441354,-150.0,0.00012917,2]
[336796519,1725161441363,-150.0,0.00012918,2]
[336796520,1725161441372,-150.0,0.00012921,2]
[336796521,1725161441382,-150.0,0.00012925,2]
[336796522,1725161441393,-150.0,0.00012928,2]
[336796523,1725161441402,-150.0,0.0001293,2]
[336796524,1725161441412,-150.0,0.00012932,2]
[336796525,1725161441421,-150.0,0.00012936,2]
[336796526,1725161441440,-150.0,0.0001294,2]
[336796527,1725161441457,-150.0,0.00012947,2]
[336796528,1725161441467,-150.0,0.00012953,2]
[336796529,1725161441478,-150.0,0.00012954,2]
[336796530,1725161441487,-150.0,0.00012954,2]
[336796531,1725161441498,-150.0,0.00012963,2]
[336796532,1725161441508,-150.0,0.00012967,2]
[336796533,1725161441518,-209.02429914,0.00012973,2]
[336796534,1725161441528,-179.64991789,0.00012973,2]
[336796535,1725161441538,-500.0,0.00012973,2]
[336796536,1725161441548,-201.04934181,0.00012973,2]
[336796537,1725161441559,-150.0,0.00012973,2]
[336796538,1725161441569,-150.0,0.00012976,2]
[336796539,1725161441578,-150.0,0.00012984,2]
[336796540,1725161441589,-150.0,0.00012988,2]
[336796541,1725161441600,-150.0,0.0001299,2]
[336796542,1725161441610,-23932.5081712,0.00012996,2]
[336796543,1725161441619,-685.0437749,0.00012996,2]
[336796544,1725161441629,-150.0,0.00012998,2]
[336796545,1725161441639,-150.0,0.00012998,2]
[336796546,1725161441648,-873.0,0.00013,2]
[336796547,1725161441657,-364503.54480072,0.00013,2]
[336796548,1725161441666,-88622.36585265,0.00013,2]
[336796549,1725161441679,-765648.24216447,0.00013,2]
[336796550,1725161441690,-45129.82602882,0.00013,2]
[336796551,1725161441701,-519435.59899997,0.00013,2]
[336796552,1725161441712,-311.142,0.00013,2]
[336796553,1725161441724,-923.08443828,0.00013,2]
[336796554,1725161441735,-1103.41846136,0.00013,2]
[336796578,1725161442648,-340.68338463,0.00011438,2]
[336796579,1725161442660,-655.40661537,0.00011438,2]
[336796580,1725161442671,-3493.6003705,0.00013,2]
[336796593,1725161443066,-1280.815005,0.00013,2]
[336796594,1725161443096,-947.40643778,0.00013,2]
[336796615,1725161445583,-38342.993469,0.00013,2]
[336796616,1725161445595,-896.1847932,0.00013,2]
[336796617,1725161445606,-1668.32821834,0.00013,2]
[336796618,1725161445727,-17217.40909647,0.00013,2]
[336796619,1725161445739,-9309.10477623,0.00013,2]
[336796620,1725161445798,-48115.66657201,0.00013,2]
[336796621,1725161445809,-5114.97780404,0.00013,2]
[336796622,1725161445820,-405.64789439,0.00013,2]
[336796623,1725161445831,-1301.33763081,0.00013,2]
[336796624,1725161445874,-5328.20000006,0.00013,2]
[336796627,1725161445947,-2784.41867649,0.00013,2]
[336796628,1725161445958,-302.0,0.00013,2]
[336796629,1725161445970,-273.5,0.00013,2]
[336796630,1725161445981,-1794.36314389,0.00013,2]
[336796633,1725161738235,151.92,0.00010959,2]
[336796634,1725161759098,296.87,9.982e-05,2]
[336796635,1725161957752,168.69,9.055e-05,2]
[336796636,1725162223435,179.9,0.00010959,2]
[336796637,1725162252078,381.48,9.817e-05,2]
[336796638,1725162533708,168.69,8.963e-05,2]
[336796646,1725162631503,-550.0,0.00011,2]
[336796647,1725162631515,-227.495996,0.00011691,2]
[336796648,1725162631568,-22.504004,0.00011691,2]
[336796649,1725162631580,-471.55003716,0.00011691,2]
[336796650,1725162631593,-521.44331218,0.00011691,2]
[336796651,1725162631610,-507.00665066,0.00011691,2]
[336796652,1725162631622,-250.0,0.00011701,2]
[336796653,1725162631635,-1000.0,0.00011702,2]
[336796654,1725162631648,-300.0,0.00011713,2]
[336796655,1725162631661,-462.10214511,0.00011714,2]
[336796656,1725162631674,-9888.96790641,0.00011714,2]
[336796657,1725162631686,-6149.07558323,0.00011714,2]
[336796658,1725162631706,-1528.35103245,0.00011714,2]
[336796659,1725162631718,-4411.92248121,0.00011714,2]
[336796660,1725162631739,-300.0,0.00011714,2]
[336796661,1725162631750,-287.37338502,0.00011714,2]
[336796662,1725162631762,-872.20746657,0.00011714,2]
[336796663,1725162631771,-993.54,0.00011721,2]
[336796664,1725162631780,-970.58111042,0.00011721,2]
[336796665,1725162631791,-1029.41888958,0.00011721,2]
[336796666,1725162631800,-250.0,0.00011723,2]
[336796667,1725162631810,-1190.82408539,0.00011724,2]
[336796668,1725162631826,-4087.53372105,0.00011724,2]
[336796669,1725162631837,-492.10202159,0.00011724,2]
[336796670,1725162631848,-413.47322908,0.00011724,2]
[336796671,1725162631879,-615.77052,0.00011724,2]
[336796672,1725162631891,-496.77,0.00011724,2]
[336796676,1725162637660,-2051.96642289,0.00011724,2]
[336796677,1725162637670,-150.0,0.00011728,2]
[336796678,1725162637679,-155.46,0.00011731,2]
[336796679,1725162637690,-451.6,0.00011735,2]
[336796680,1725162637699,-171.55,0.00011964,2]
[336796681,1725162637709,-381.48,0.00012081,2]
[336796682,1725162637719,-178.71,0.0001225,2]
[336796683,1725162637729,-208.78,0.000123,2]
[336796684,1725162637739,-400.0,0.000123,4]
[336796685,1725162637748,-205.47,0.00012305,2]
[336796686,1725162637758,-497.58477711,0.000124,4]
[336796687,1725162637770,-302.41522289,0.000124,4]
[336796688,1725162637780,-1200.0,0.000125,4]
[336796689,1725162637790,-1600.0,0.000126,4]
[336796690,1725162637800,-2000.0,0.000127,4]
[336796691,1725162637810,-150.0,0.00012728,2]
[336796692,1725162637819,-150.0,0.00012728,2]
[336796693,1725162637829,-150.0,0.00012728,2]
[336796694,1725162637838,-150.0,0.00012729,2]
[336796695,1725162637848,-150.0,0.00012729,2]
[336796696,1725162637858,-150.0,0.00012731,2]
[336796697,1725162637867,-150.0,0.00012734,2]
[336796698,1725162637876,-150.0,0.00012737,2]
[336796699,1725162637886,-150.0,0.00012745,2]
[336796700,1725162637895,-150.0,0.00012747,2]
[336796701,1725162637904,-150.0,0.00012751,2]
[336796702,1725162637914,-150.0,0.00012751,2]
[336796703,1725162637923,-150.0,0.00012751,2]
[336796704,1725162637933,-150.0,0.00012756,2]
[336796705,1725162637942,-150.0,0.00012761,2]
[336796706,1725162637951,-150.0,0.00012763,2]
[336796707,1725162637961,-150.0,0.00012767,2]
[336796708,1725162637971,-1500.0,0.00012767,2]
[336796709,1725162637980,-150.0,0.00012773,2]
[336796710,1725162637989,-150.0,0.00012773,2]
[336796711,1725162637999,-150.0,0.00012776,2]
[336796712,1725162638008,-150.0,0.00012788,2]
[336796713,1725162638019,-150.0,0.00012789,2]
[336796714,1725162638028,-150.0,0.00012791,2]
[336796715,1725162638038,-150.0,0.00012791,2]
[336796716,1725162638049,-150.0,0.00012793,2]
[336796718,1725162638059,-150.0,0.00012799,2]
[336796720,1725162638069,-33.55162169,0.000128,2]
[336796723,1725162638081,-966.44837831,0.000128,2]
[336796724,1725162638092,-201.12140366,0.000128,2]
[336796726,1725162638103,-2298.87859634,0.000128,2]
[336796728,1725162638112,-697.82140366,0.000128,2]
[336796730,1725162638127,-515.28705452,0.000128,2]
[336796733,1725162638138,-307.49972402,0.000128,2]
[336796735,1725162638148,-827.20815221,0.000128,2]
[336796737,1725162638159,-19137.89899619,0.000128,2]
[336796740,1725162638187,-2194.1739635,0.000128,2]
[336796741,1725162638197,-400.0,0.000128,4]
[336796742,1725162638206,-329.66248455,0.000128,2]
[336796743,1725162638216,-150.0,0.00012802,2]
[336796744,1725162638226,-150.0,0.00012803,2]
[336796745,1725162638235,-150.0,0.00012803,2]
[336796746,1725162638245,-150.0,0.00012807,2]
[336796747,1725162638255,-150.0,0.00012809,2]
[336796748,1725162638264,-150.0,0.00012814,2]
[336796749,1725162638274,-150.0,0.00012817,2]
[336796750,1725162638284,-150.0,0.00012822,2]
[336796751,1725162638295,-150.0,0.00012826,2]
[336796752,1725162638304,-150.0,0.00012827,2]
[336796753,1725162638314,-231.66114415,0.00012829,2]
[336796754,1725162638325,-150.0,0.00012831,2]
[336796755,1725162638335,-150.0,0.00012834,2]
[336796756,1725162638345,-150.0,0.00012835,2]
[336796757,1725162638354,-150.0,0.00012836,2]
[336796758,1725162638364,-150.0,0.00012836,2]
[336796759,1725162638373,-150.0,0.0001284,2]
[336796760,1725162638383,-150.0,0.00012842,2]
[336796761,1725162638392,-150.0,0.00012846,2]
[336796762,1725162638402,-150.0,0.00012854,2]
[336796763,1725162638411,-150.0,0.00012857,2]
[336796764,1725162638420,-150.0,0.0001286,2]
[336796765,1725162638431,-5.72345281,0.00012863,2]
[336796766,1725162638474,-307.07755376,0.00012863,2]
[336796767,1725162638486,-107.19899343,0.00012863,2]
[336796768,1725162638495,-150.0,0.00012867,2]
[336796769,1725162638505,-150.0,0.0001287,2]
[336796770,1725162638514,-150.0,0.0001287,2]
[336796771,1725162638523,-486.44570653,0.0001287,2]
[336796772,1725162638546,-1488.82771347,0.0001287,2]
[336796773,1725162638555,-150.0,0.00012875,2]
[336796774,1725162638565,-2222.75132892,0.0001288,2]
[336796775,1725162638577,-5277.24867108,0.0001288,2]
[336796776,1725162638586,-181.77573316,0.0001288,2]
[336796777,1725162638595,-150.0,0.00012883,2]
[336796778,1725162638605,-150.0,0.00012883,2]
[336796779,1725162638614,-1500.0,0.00012885,2]
[336796780,1725162638623,-51.14148182,0.00012886,2]
[336796781,1725162638636,-98.85851818,0.00012886,2]
[336796782,1725162638645,-150.0,0.00012888,2]
[336796783,1725162638655,-150.0,0.00012888,2]
[336796784,1725162638665,-150.0,0.00012888,2]
[336796785,1725162638674,-150.0,0.00012889,2]
[336796786,1725162638683,-500.0,0.00012896,2]
[336796787,1725162638693,-150.0,0.00012897,2]
[336796788,1725162638702,-150.0,0.00012898,2]
[336796789,1725162638712,-4950.76443605,0.000129,2]
[336796790,1725162638723,-39711.84219077,0.000129,2]
[336796792,1725162638735,-4830.05462,0.000129,2]
[336796794,1725162638746,-779.25483295,0.000129,2]
[336796796,1725162638757,-442.25,0.000129,2]
[336796798,1725162638768,-2234.28306925,0.000129,2]
[336796800,1725162638780,-765.46862665,0.000129,2]
[336796801,1725162638791,-709.08266212,0.000129,2]
[336796802,1725162639043,-1248.82727493,0.000129,2]
[336796803,1725162639064,-5213.2416444,0.000129,2]
[336796804,1725162639077,-10057.58,0.000129,2]
[336796805,1725162639090,-51648.85875775,0.000129,2]
[336796806,1725162639706,-3593.08737091,0.000129,2]
[336796807,1725162639719,-307.46014093,0.000129,2]
[336796808,1725162639764,-6174.05112222,0.000129,2]
[336796809,1725162639810,-17049.04648691,0.000129,2]
[336796810,1725162639889,-319.7560555,0.000129,2]
[336796811,1725162639901,-2349.322002,0.000129,2]
[336796812,1725162639913,-1079.800005,0.000129,2]
[336796813,1725162639926,-707.29759084,0.000129,2]
[336796814,1725162639937,-5520.4318433,0.000129,2]
[336796815,1725162639978,-85308.23926752,0.000129,2]
[336796816,1725162639988,-500.0,0.000129,2]
[336796817,1725162639998,-1000.0,0.000129,2]
[336796818,1725162640007,-168.42192593,0.000129,2]
[336796819,1725162640017,-32660.3793,0.000129,2]
[336796820,1725162640027,-100000.0,0.000129,2]
[336796821,1725162640037,-150.0,0.000129,2]
[336796822,1725162640047,-400.0,0.000129,4]
[336796823,1725162640059,-1000.0,0.000129,2]
[336796824,1725162640071,-181.77573316,0.000129,2]
[336796826,1725162640082,-150.0,0.00012905,2]
[336796828,1725162640092,-150.0,0.00012908,2]
[336796830,1725162640103,-150.0,0.00012911,2]
[336796832,1725162640113,-150.0,0.00012914,2]
[336796834,1725162640124,-150.0,0.00012915,2]
[336796837,1725162640150,-150.0,0.00012919,2]
[336796838,1725162640161,-150.0,0.00012923,2]
[336796841,1725162640171,-150.0,0.00012925,2]
[336796843,1725162640181,-155.37597206,0.00012926,2]
[336796845,1725162640191,-150.0,0.00012931,2]
[336796847,1725162640202,-150.0,0.00012932,2]
[336796849,1725162640212,-150.0,0.00012934,2]
[336796851,1725162640221,-150.0,0.00012935,2]
[336796853,1725162640231,-150.0,0.00012935,2]
[336796855,1725162640240,-274.23202314,0.00012937,2]
[336796857,1725162640251,-150.0,0.0001294,2]
[336796859,1725162640261,-150.0,0.00012941,2]
[336796861,1725162640272,-150.0,0.00012941,2]
[336796863,1725162640284,-150.0,0.00012942,2]
[336796865,1725162640294,-1511.44284122,0.0001295,2]
[336796868,1725162640304,-150.0,0.00012951,2]
[336796870,1725162640315,-150.0,0.00012954,2]
[336796872,1725162640327,-150.0,0.00012954,2]
[336796874,1725162640336,-150.0,0.00012956,2]
[336796876,1725162640346,-150.0,0.00012958,2]
[336796878,1725162640357,-150.0,0.00012958,2]
[336796880,1725162640367,-150.0,0.00012959,2]
[336796882,1725162640377,-150.0,0.00012959,2]
[336796884,1725162640387,-150.0,0.00012961,2]
[336796887,1725162640399,-150.0,0.00012962,2]
[336796889,1725162640410,-150.0,0.00012964,2]
[336796891,1725162640419,-150.0,0.00012965,2]
[336796893,1725162640430,-150.0,0.00012967,2]
[336796895,1725162640440,-150.0,0.00012967,2]
[336796896,1725162640451,-150.0,0.00012969,2]
[336796897,1725162640460,-500.0,0.00012973,2]
[336796898,1725162640470,-156.10027507,0.00012973,2]
[336796899,1725162640480,-500.0,0.00012973,2]
[336796900,1725162640489,-202.5498947,0.00012973,2]
[336796901,1725162640499,-502.39565054,0.00012973,2]
[336796902,1725162640509,-150.0,0.00012973,2]
[336796903,1725162640518,-150.0,0.00012976,2]
[336796904,1725162640528,-150.0,0.00012977,2]
[336796905,1725162640538,-150.0,0.00012978,2]
[336796906,1725162640549,-857.0,0.0001298,2]
[336796907,1725162640559,-127478.35873534,0.0001298,2]
[336796908,1725162640588,-347.78074878,0.0001298,2]
[336796909,1725162640599,-540.18000005,0.0001298,2]
[336796921,1725162640735,-322.85018007,0.0001298,2]
[336796924,1725162640747,-24104.6103854,0.0001298,2]
[336796926,1725162640760,-1809.41,0.0001298,2]
[336796928,1725162640774,-2352.05509603,0.0001298,2]
[336796931,1725162640786,-503.4787228,0.0001298,2]
[336796980,1725162642705,-2694.80145435,0.0001298,2]
[336796981,1725162642717,-21134.19,0.0001298,2]
[336796982,1725162642767,-297.59077079,0.0001298,2]
[336796983,1725162642840,-311.308985,0.0001298,2]
[336796984,1725162642852,-27020.25076693,0.0001298,2]
[336796985,1725162642868,-478629.05418664,0.0001298,2]
[336796986,1725162642878,-150.0,0.0001298,2]
[336796987,1725162642888,-150.0,0.00012984,2]
[336796988,1725162642897,-150.0,0.00012984,2]
[336796989,1725162642907,-150.0,0.00012985,2]
[336796990,1725162642916,-150.0,0.00012986,2]
[336796991,1725162642925,-5000.0,0.0001299,2]
[336796992,1725162642934,-150.0,0.00012996,2]
[336796993,1725162642944,-508.4373723,0.00012996,2]
[336796994,1725162642953,-179.8252307,0.00012996,2]
[336796995,1725162642963,-330.01757749,0.00012996,2]
[336796996,1725162642972,-196.5197519,0.00012996,2]
[336796997,1725162642981,-12928.26146195,0.00012996,2]
[336796998,1725162642992,-542.66443405,0.00012996,2]
[336796999,1725162643002,-4281.03784596,0.00012999,2]
[336797000,1725162643011,-13946.61218621,0.00013,2]
[336797001,1725162643026,-630.18302999,0.00013,2]
[336797012,1725162646431,-883.32723249,0.00013,2]
[336797013,1725162646460,-456.4016894,0.00013,2]
[336797014,1725162646921,-1675.2,0.00013,2]
[336797015,1725162647010,-32879.82654383,0.00013,2]
[336797016,1725162647043,-1232.11094051,0.00013,2]
[336797017,1725162647057,-3337.89376783,0.00013,2]
[336797018,1725162647068,-3006.8028,0.00013,2]
[336797019,1725162647081,-14993.26991951,0.00013,2]
[336797020,1725162647098,-321.56691331,0.00013,2]
[336797022,1725162931866,522.8,9.942e-05,2]
[336797023,1725163147718,300.0,0.00010999,2]
[336797024,1725163202575,150.0,0.00010999,2]
[336797025,1725163290705,169.15,0.00010959,2]
[336797026,1725163322365,300.0,0.00010999,2]
[336797027,1725163381459,300.0,0.00010999,2]
[336797028,1725163382954,150.0,0.00010999,2]
[336797029,1725163407411,200.0,0.00023999,120]
[336797030,1725163412763,580.96,9.803e-05,2]
[336797031,1725163561428,300.0,0.00010999,2]
[336797032,1725163562723,150.0,0.00010999,2]
[336797033,1725163682765,300.0,0.00010999,2]
[336797034,1725163741263,300.0,0.00010999,2]
[336797035,1725163749919,1108.301799,0.00010945,2]
[336797036,1725163754223,-500.0,0.00011,2]
[336797037,1725163754249,-3850.22884862,0.00011,2]
[336797038,1725163754282,-4350.22884862,0.00011,2]
[336797039,1725163754325,-4350.22884862,0.00011,2]
[336797040,1725163754370,-4350.22884862,0.00011,2]
[336797042,1725163783399,154.97,0.00010959,2]
[336797057,1725163831710,-929.99995,0.00011,2]
[336797059,1725163831722,-191058.97035352,0.00011,2]
[336797061,1725163831732,-250.0,0.00011656,2]
[336797063,1725163831740,-803.15,0.00011696,2]
[336797065,1725163831750,-167.02,0.00011706,2]
[336797067,1725163831759,-1500.0,0.0001171,2]
[336797069,1725163831769,-171.55,0.00011712,2]
[336797070,1725163831779,-250.0,0.00011717,2]
[336797071,1725163831788,-155.46,0.0001172,2]
[336797072,1725163831797,-250.0,0.00011721,2]
[336797073,1725163831806,-693.1867,0.00011726,2]
[336797074,1725163831815,-18481.4273,0.00011726,2]
[336797075,1725163831826,-23900.0,0.00011727,2]
[336797076,1725163831838,-800.0,0.00011732,2]
[336797077,1725163831847,-200.0,0.00011808,2]
[336797078,1725163831857,-16710.2738,0.00011825,2]
[336797079,1725163831867,-1238.7156,0.00011826,2]
[336797080,1725163831876,-181.1707,0.00011826,2]
[336797081,1725163831887,-181.01,0.00011926,2]
[336797082,1725163831897,-580.96,0.00012067,2]
[336797083,1725163831906,-205.94,0.00012307,2]
[336797084,1725163831916,-4176.4939,0.000127,2]
[336797085,1725163831927,-1822.0,0.000127,2]
[336797086,1725163831937,-150.0,0.00012729,2]
[336797087,1725163831947,-150.0,0.00012731,2]
[336797088,1725163831957,-197.165908,0.00012737,2]
[336797089,1725163831967,-150.0,0.00012745,2]
[336797090,1725163831978,-150.0,0.00012748,2]
[336797091,1725163831989,-150.0,0.00012751,2]
[336797092,1725163831999,-150.0,0.00012752,2]
[336797093,1725163832010,-150.0,0.00012756,2]
[336797094,1725163832020,-150.0,0.00012758,2]
[336797095,1725163832029,-150.0,0.00012758,2]
[336797096,1725163832038,-150.0,0.00012762,2]
[336797097,1725163832047,-150.0,0.00012767,2]
[336797098,1725163832057,-150.0,0.00012768,2]
[336797099,1725163832066,-150.0,0.0001277,2]